bitfinex/quotes_BTCUSD_20260110
["timestamp","ask_amount","ask_price","bid_price","bid_amount"]
[1768035999414,0.04618925,90702.0,90690.0,0.10152667]
[1768035999815,0.04618925,90702.0,90690.0,0.11255324]
[1768036000936,0.04618925,90702.0,90690.0,0.10152667]
[1768036001835,0.05721436,90702.0,90690.0,0.10152667]
[1768036002062,0.04618925,90702.0,90690.0,0.10152667]
[1768036002265,0.05721436,90702.0,90690.0,0.10152667]
[1768036002473,0.04618925,90702.0,90690.0,0.10152667]
[1768036002673,0.01102523,90701.0,90690.0,0.10152667]
[1768036002797,0.05721436,90702.0,90690.0,0.10152667]
[1768036003225,0.01102523,90701.0,90690.0,0.10152667]
[1768036003676,0.05721436,90702.0,90690.0,0.10152667]
[1768036004463,0.01102523,90701.0,90690.0,0.10152667]
[1768036005497,0.05721436,90702.0,90690.0,0.10152667]
[1768036006018,0.04618925,90702.0,90690.0,0.10152667]
[1768036007098,0.05721436,90702.0,90690.0,0.10152667]
[1768036007303,0.04618925,90702.0,90690.0,0.10152667]
[1768036008490,0.05721436,90702.0,90690.0,0.10152667]
[1768036008941,0.04618925,90702.0,90690.0,0.10152667]
[1768036009297,0.04618925,90702.0,90690.0,0.02208]
[1768036011192,0.04618925,90702.0,90690.0,0.03310657]
[1768036012346,0.04618925,90702.0,90690.0,0.02208]
[1768036012524,0.04618925,90702.0,90690.0,0.03310657]
[1768036012727,0.04618925,90702.0,90690.0,0.02208]
[1768036013253,0.04618925,90702.0,90690.0,0.03310657]
[1768036014524,0.04618925,90702.0,90691.0,0.01102645]
[1768036016552,0.04618925,90702.0,90690.0,0.11255324]
[1768036017299,0.04618925,90702.0,90691.0,0.01102645]
[1768036017643,0.04618925,90702.0,90690.0,0.11255324]
[1768036018243,0.04618925,90702.0,90691.0,0.01102645]
[1768036018648,0.04618925,90702.0,90690.0,0.11255324]
[1768036018846,0.04618925,90702.0,90691.0,0.01102645]
[1768036019934,0.04618925,90702.0,90690.0,0.11255324]
[1768036020553,0.04618925,90702.0,90691.0,0.01102645]
[1768036020754,0.04618925,90702.0,90692.0,0.01102633]
[1768036021195,0.04618925,90702.0,90691.0,0.01102645]
[1768036021609,0.04618925,90702.0,90692.0,0.01102633]
[1768036021817,0.04618925,90702.0,90691.0,0.01102645]
[1768036022865,0.04618925,90702.0,90692.0,0.01102633]
[1768036023065,0.04618925,90702.0,90690.0,0.10152667]
[1768036023500,0.04618925,90702.0,90691.0,0.07944667]
[1768036024245,0.05721436,90702.0,90691.0,0.07944667]
[1768036024647,0.05956012,90701.0,90690.0,0.07944667]
[1768036024842,0.01102535,90700.0,90691.0,0.02208]
[1768036025041,0.05956012,90701.0,90691.0,0.02208]
[1768036025265,0.04853489,90701.0,90691.0,0.02208]
[1768036031758,0.04853489,90701.0,90691.0,0.03310645]
[1768036031920,0.04853489,90701.0,90691.0,0.02208]
[1768036032322,0.04853489,90701.0,90691.0,0.03310645]
[1768036032846,0.04853489,90701.0,90691.0,0.02208]
[1768036033046,0.04853489,90701.0,90691.0,0.03310645]
[1768036033294,0.02501975,90701.0,90693.0,0.0110262]
[1768036034297,0.02208,90707.0,90694.0,0.01102608]
[1768036034507,0.04853489,90706.0,90694.0,0.01102608]
[1768036034723,0.04853489,90706.0,90692.0,0.01102633]
[1768036035847,0.04853489,90706.0,90693.0,0.0110262]
[1768036037107,0.04853489,90706.0,90694.0,0.01102608]
[1768036039088,0.04853489,90706.0,90693.0,0.0110262]
[1768036039586,0.04853489,90706.0,90692.0,0.01102633]
[1768036039791,0.04853489,90706.0,90691.0,0.02208]
[1768036039944,0.04853489,90706.0,90693.0,0.0110262]
[1768036041376,0.04853489,90706.0,90692.0,0.01102633]
[1768036041580,0.01102475,90705.0,90691.0,0.03310645]
[1768036041778,0.01102475,90705.0,90691.0,0.02208]
[1768036041987,0.05955951,90706.0,90691.0,0.03310645]
[1768036042638,0.01102487,90704.0,90691.0,0.02208]
[1768036042855,0.04853489,90700.0,90691.0,0.02208]
[1768036043196,0.01102584,90696.0,90691.0,0.02208]
[1768036043409,0.000999,90691.0,90686.0,0.0001997]
[1768036043618,0.01102633,90692.0,90686.0,0.0001997]
[1768036043999,0.01102608,90694.0,90686.0,0.0001997]
[1768036044117,0.0110262,90693.0,90686.0,0.0001997]
[1768036044322,0.01102633,90692.0,90686.0,0.0001997]
[1768036044523,0.01102633,90692.0,90686.0,7e-07]
[1768036045344,0.01102645,90691.0,90686.0,7e-07]
[1768036045567,0.01102633,90692.0,90686.0,7e-07]
[1768036045987,0.0110262,90693.0,90686.0,7e-07]
[1768036046216,0.04853489,90690.0,90686.0,7e-07]
[1768036046448,0.04853489,90687.0,90686.0,7e-07]
[1768036046816,0.10366958,90687.0,90686.0,7e-07]
[1768036047215,0.04853489,90687.0,90686.0,7e-07]
[1768036047436,0.05513415,90688.0,90677.0,0.0001497]
[1768036047437,0.05513653,90684.0,90677.0,0.0001497]
[1768036047633,0.01102742,90683.0,90677.0,7e-07]
[1768036048078,0.0110273,90684.0,90677.0,7e-07]
[1768036048290,0.01102742,90683.0,90677.0,7e-07]
[1768036048593,0.0110273,90684.0,90677.0,7e-07]
[1768036048744,0.05513712,90683.0,90677.0,7e-07]
[1768036048941,0.01102766,90681.0,90677.0,7e-07]
[1768036051044,0.01102779,90680.0,90677.0,7e-07]
[1768036051422,0.01102766,90681.0,90677.0,7e-07]
[1768036051620,0.01102754,90682.0,90677.0,7e-07]
[1768036051822,0.01102766,90681.0,90677.0,7e-07]
[1768036052324,4.654e-05,90681.0,90677.0,7e-07]
[1768036053131,0.0110742,90681.0,90677.0,7e-07]
[1768036053332,4.654e-05,90681.0,90677.0,7e-07]
[1768036058006,0.01102779,90680.0,90677.0,7e-07]
[1768036058187,0.0110742,90681.0,90677.0,7e-07]
[1768036058598,0.01102779,90680.0,90677.0,7e-07]
[1768036061756,0.04738846,90680.0,90677.0,7e-07]
[1768036061960,0.05841625,90680.0,90677.0,7e-07]
[1768036062595,0.01102779,90680.0,90677.0,7e-07]
[1768036062836,4.654e-05,90681.0,90677.0,7e-07]
[1768036077726,0.04735481,90680.0,90677.0,7e-07]
[1768036079099,4.654e-05,90681.0,90678.0,0.04810714]
[1768036079305,0.02208,90690.0,90681.0,4.6e-05]
[1768036079503,0.02208,90690.0,90677.0,7e-07]
[1768036079806,0.03310657,90690.0,90677.0,7e-07]
[1768036080344,0.01102669,90689.0,90677.0,7e-07]
[1768036080597,0.02208,90690.0,90677.0,7e-07]
[1768036080797,0.02208,90690.0,90677.0,0.01102885]
[1768036081281,0.02208,90690.0,90678.0,0.01102803]
[1768036081428,0.02208,90690.0,90682.0,0.01102754]
[1768036081629,0.02208,90690.0,90678.0,0.01102803]
[1768036081862,0.02208,90690.0,90680.0,0.01102779]
[1768036082024,0.02208,90690.0,90679.0,0.01102791]
[1768036082223,0.02208,90690.0,90678.0,0.01102803]
[1768036082426,0.02208,90690.0,90679.0,0.01102791]
[1768036082863,0.02208,90690.0,90678.0,0.01102803]
[1768036083272,0.02208,90690.0,90679.0,0.01102791]
[1768036083467,0.01102669,90689.0,90677.0,7e-07]
[1768036083680,0.01102681,90688.0,90677.0,7e-07]
[1768036084554,0.01102669,90689.0,90677.0,7e-07]
[1768036085793,0.03310657,90690.0,90677.0,7e-07]
[1768036086881,0.02208,90690.0,90677.0,0.01102885]
[1768036087065,0.02208,90690.0,90677.0,0.05836301]
[1768036087261,0.02208,90690.0,90679.0,0.01102791]
[1768036087490,0.02208,90690.0,90682.0,0.01102754]
[1768036088332,0.02208,90690.0,90681.0,0.01102766]
[1768036088541,0.02208,90690.0,90682.0,0.01102754]
[1768036088739,0.02208,90690.0,90681.0,0.01102766]
[1768036088942,0.02208,90690.0,90682.0,0.01102754]
[1768036090740,0.02208,90690.0,90683.0,0.01102742]
[1768036090942,0.02208,90690.0,90682.0,0.01102754]
[1768036091485,0.02208,90690.0,90683.0,0.01102742]
[1768036091934,0.02208,90690.0,90682.0,0.01102754]
[1768036093074,0.02208,90690.0,90681.0,0.01102766]
[1768036093276,0.02208,90690.0,90678.0,0.04733416]
[1768036093637,0.02208,90690.0,90678.0,0.05836219]
[1768036094332,0.02208,90690.0,90679.0,0.01102791]
[1768036094536,0.02208,90690.0,90680.0,0.01102779]
[1768036094943,0.02208,90690.0,90678.0,0.05836219]
[1768036095604,0.02208,90690.0,90678.0,0.04733416]
[1768036095803,0.02208,90690.0,90678.0,0.05836219]
[1768036096393,0.02208,90690.0,90680.0,0.01102779]
[1768036096776,0.02208,90690.0,90681.0,0.01102766]
[1768036096982,0.02208,90690.0,90680.0,0.01102779]
[1768036097914,0.02208,90690.0,90681.0,0.01102766]
[1768036098128,0.02208,90690.0,90682.0,0.01102754]
[1768036098777,0.02208,90690.0,90683.0,0.01102742]
[1768036099127,0.02208,90690.0,90682.0,0.01102754]
[1768036099751,0.02208,90690.0,90683.0,0.01102742]
[1768036100373,0.02208,90690.0,90682.0,0.01102754]
[1768036100525,0.06076814,90700.0,90690.0,0.000348]
[1768036100723,0.02208,90694.0,90690.0,0.00027985]
[1768036101146,0.02208,90694.0,90683.0,0.04733416]
[1768036101668,0.02208,90694.0,90682.0,0.01102754]
[1768036102239,0.02208,90694.0,90683.0,0.01102742]
[1768036102419,0.02208,90694.0,90682.0,0.01102754]
[1768036103119,0.02208,90694.0,90683.0,0.01102742]
[1768036103916,0.02208,90694.0,90684.0,0.0110273]
[1768036104270,0.02208,90694.0,90683.0,0.01102742]
[1768036105724,0.02208,90694.0,90683.0,0.05836158]
[1768036105954,0.02208,90694.0,90684.0,0.0110273]
[1768036106888,0.02208,90694.0,90685.0,0.01102718]
[1768036107941,0.02208,90694.0,90686.0,0.01102706]
[1768036108553,0.02208,90694.0,90685.0,0.05836134]
[1768036109348,0.02208,90694.0,90686.0,0.01102706]
[1768036109552,0.02208,90694.0,90685.0,0.05836134]
[1768036109919,0.02208,90694.0,90685.0,0.04733416]
[1768036111355,0.03310608,90694.0,90685.0,0.04733416]
[1768036111797,0.01102608,90694.0,90685.0,0.04733416]
[1768036112198,0.01102596,90695.0,90685.0,0.04733416]
[1768036112403,0.01102608,90694.0,90685.0,0.04733416]
[1768036112794,0.01102596,90695.0,90685.0,0.04733416]
[1768036112977,0.01102584,90696.0,90685.0,0.04733416]
[1768036113423,0.01102572,90697.0,90685.0,0.04733416]
[1768036113780,0.01102584,90696.0,90685.0,0.04733416]
[1768036114147,0.01102572,90697.0,90685.0,0.04733416]
[1768036114356,0.01102584,90696.0,90685.0,0.04733416]
[1768036116443,0.01102572,90697.0,90685.0,0.04733416]
[1768036117887,0.01102596,90695.0,90685.0,0.04733416]
[1768036119003,0.01102608,90694.0,90685.0,0.04733416]
[1768036119205,0.0110262,90693.0,90685.0,0.04733416]
[1768036120095,0.01102608,90694.0,90685.0,0.04733416]
[1768036120303,0.0110262,90693.0,90678.0,0.07944667]
[1768036120480,0.0110262,90693.0,90679.0,0.04603219]
[1768036121078,0.0110262,90693.0,90679.0,0.0570601]
[1768036122497,0.01102633,90692.0,90679.0,0.04603219]
[1768036123367,0.0110262,90693.0,90679.0,0.0570601]
[1768036124709,0.01102633,90692.0,90679.0,0.04603219]
[1768036124915,0.01102645,90691.0,90679.0,0.04603219]
[1768036125131,0.01102657,90690.0,90679.0,0.04603219]
[1768036126103,0.01102645,90691.0,90679.0,0.04603219]
[1768036127107,0.01102633,90692.0,90679.0,0.04603219]
[1768036133914,0.0110262,90693.0,90679.0,0.0570601]
[1768036134846,0.01102633,90692.0,90679.0,0.04603219]
[1768036135018,0.0110262,90693.0,90679.0,0.04603219]
[1768036136316,0.0110262,90693.0,90679.0,0.0570601]
[1768036139969,0.01102633,90692.0,90679.0,0.04603219]
[1768036140429,0.04543065,90676.0,90672.0,0.07948288]
[1768036140654,0.01102851,90674.0,90671.0,0.00039]
[1768036140880,0.05514381,90672.0,90671.0,0.00039]
[1768036141319,0.05514381,90672.0,90668.0,0.0001504]
[1768036141320,0.01102888,90671.0,90668.0,0.0001504]
[1768036141536,0.05514503,90670.0,90668.0,0.0001504]
[1768036141751,0.0665634,90671.0,90668.0,4e-07]
[1768036141949,0.0661734,90671.0,90668.0,4e-07]
[1768036142190,0.0661734,90671.0,90668.0,0.00035238]
[1768036143641,0.05514503,90670.0,90668.0,0.00035238]
[1768036143896,0.05514563,90669.0,90668.0,0.00035238]
[1768036149261,0.05514563,90669.0,90668.0,1e-08]
[1768036155291,0.05510531,90669.0,90668.0,1e-08]
[1768036162329,0.0882534,90671.0,90660.0,0.00051661]
[1768036162330,0.01102985,90663.0,90660.0,0.00051661]
[1768036162540,0.0551505,90661.0,90660.0,0.00056315]
[1768036162951,0.0551505,90661.0,90660.0,1.5e-07]
[1768036163578,0.0551505,90661.0,90659.0,1e-08]
[1768036163801,0.05515111,90660.0,90659.0,7.765e-05]
[1768036169307,0.05515111,90660.0,90650.0,0.0001497]
[1768036169308,0.01103107,90653.0,90650.0,0.0001497]
[1768036169434,0.06618658,90653.0,90650.0,0.0001497]
[1768036169649,0.05515658,90651.0,90650.0,0.0001497]
[1768036169958,0.06618658,90653.0,90651.0,0.000993]
[1768036170159,0.01103107,90653.0,90651.0,0.000993]
[1768036170363,0.01103107,90653.0,90650.0,0.0001497]
[1768036176583,0.06618646,90653.0,90650.0,0.0001497]
[1768036177480,0.01103107,90653.0,90650.0,0.0001497]
[1768036178261,0.0661869,90653.0,90650.0,0.0001497]
[1768036179831,0.01103107,90653.0,90650.0,0.0001497]
[1768036182085,0.05515598,90652.0,90650.0,0.0001497]
[1768036182290,0.05515658,90651.0,90650.0,0.0001497]
[1768036182846,0.05515658,90651.0,90650.0,0.00010463]
[1768036186241,0.01103107,90653.0,90650.0,0.00010463]
[1768036186477,0.05515658,90651.0,90650.0,0.00010463]
[1768036188345,0.05515658,90651.0,90641.0,0.04529565]
[1768036188346,0.01103216,90644.0,90641.0,0.0001497]
[1768036189421,0.06619356,90644.0,90641.0,0.0001497]
[1768036189623,0.12356371,90643.0,90641.0,0.00010463]
[1768036190942,0.05516206,90642.0,90641.0,0.00010463]
[1768036191160,0.05516206,90642.0,90641.0,5.958e-05]
[1768036192982,0.0927025,90642.0,90641.0,5.958e-05]
[1768036194368,0.03754044,90642.0,90641.0,5.958e-05]
[1768036195963,0.0927025,90642.0,90641.0,5.958e-05]
[1768036196820,0.0927025,90642.0,90641.0,1.453e-05]
[1768036197782,0.05516206,90642.0,90641.0,1.453e-05]
[1768036198865,0.12356371,90643.0,90641.0,1.453e-05]
[1768036199053,0.05516206,90642.0,90641.0,1.453e-05]
[1768036203519,0.17872531,90643.0,90641.0,1.453e-05]
[1768036203761,0.12356371,90643.0,90641.0,1.453e-05]
[1768036203933,0.12257071,90643.0,90641.0,1.453e-05]
[1768036204335,0.05516206,90642.0,90641.0,1.453e-05]
[1768036206377,0.12257071,90643.0,90641.0,1.453e-05]
[1768036207043,0.17773217,90643.0,90641.0,1.453e-05]
[1768036209259,0.12257071,90643.0,90641.0,1.453e-05]
[1768036209660,0.08827099,90647.0,90641.0,0.04725139]
[1768036209661,0.02208,90647.0,90641.0,0.04725139]
[1768036209864,0.0331118,90647.0,90641.0,0.04725139]
[1768036210068,0.01103192,90646.0,90641.0,0.04725139]
[1768036210274,0.0331118,90647.0,90641.0,0.04725139]
[1768036210495,0.02208,90647.0,90641.0,0.04725139]
[1768036214186,0.0331118,90647.0,90641.0,0.04725139]
[1768036214378,0.02208,90647.0,90641.0,0.04725139]
[1768036230102,0.0331118,90647.0,90641.0,0.04725139]
[1768036230479,0.02208,90647.0,90641.0,0.04725139]
[1768036253313,0.0331118,90647.0,90641.0,0.04725139]
[1768036253927,0.02208,90647.0,90641.0,0.04725139]
[1768036261928,0.06618584,90654.0,90641.0,0.04725139]
[1768036261929,0.03311095,90654.0,90641.0,0.04725139]
[1768036262175,0.01103119,90652.0,90641.0,0.04725139]
[1768036262347,0.01103107,90653.0,90641.0,0.04725139]
[1768036262684,0.01103119,90652.0,90641.0,0.04725139]
[1768036263396,0.01103131,90651.0,90641.0,0.04725139]
[1768036263972,0.01103143,90650.0,90641.0,0.04725139]
[1768036264342,0.06618912,90650.0,90641.0,0.04725139]
[1768036264695,0.01103156,90649.0,90641.0,0.04725139]
[1768036265599,0.01103143,90650.0,90641.0,0.04725139]
[1768036265954,0.01103131,90651.0,90641.0,0.04725139]
[1768036266174,0.11479142,90654.0,90641.0,0.04725139]
[1768036266374,0.01103107,90653.0,90641.0,0.04725139]
[1768036266723,0.01103119,90652.0,90641.0,0.04725139]
[1768036266884,0.01103107,90653.0,90641.0,0.04725139]
[1768036267081,0.01103119,90652.0,90641.0,0.04725139]
[1768036267286,0.01103107,90653.0,90641.0,0.04725139]
[1768036268314,0.07066651,90654.0,90641.0,0.04725139]
[1768036269255,0.01103107,90653.0,90641.0,0.04725139]
[1768036269611,0.01103119,90652.0,90641.0,0.04725139]
[1768036269812,0.01103143,90650.0,90641.0,0.04725139]
[1768036270425,0.01103119,90652.0,90641.0,0.04725139]
[1768036271461,0.01103131,90651.0,90641.0,0.04725139]
[1768036273678,0.01103119,90652.0,90641.0,0.04725139]
[1768036274387,0.01103107,90653.0,90641.0,0.04716148]
[1768036274548,0.01103143,90650.0,90641.0,0.04716148]
[1768036274885,0.01103131,90651.0,90641.0,0.04716148]
[1768036275091,0.01103143,90650.0,90641.0,0.04716148]
[1768036275885,0.01103131,90651.0,90641.0,0.04716148]
[1768036276036,0.01103143,90650.0,90641.0,0.04716148]
[1768036276237,0.01103119,90652.0,90641.0,0.04716148]
[1768036276615,0.01103131,90651.0,90641.0,0.04716148]
[1768036277686,0.01103143,90650.0,90641.0,0.04716148]
[1768036277896,0.01103119,90652.0,90641.0,0.04716148]
[1768036280502,0.01103131,90651.0,90641.0,0.04716148]
[1768036282623,0.01103119,90652.0,90641.0,0.04716148]
[1768036284872,0.01103107,90653.0,90641.0,0.04716148]
[1768036285074,0.01103119,90652.0,90641.0,0.04716148]
[1768036285353,0.01103107,90653.0,90641.0,0.04716148]
[1768036285741,0.07066651,90654.0,90641.0,0.04716148]
[1768036286288,0.01103107,90653.0,90641.0,0.04716148]
[1768036287594,0.01103131,90651.0,90641.0,0.04716148]
[1768036287811,0.01103143,90650.0,90641.0,0.04716148]
[1768036288976,0.01103131,90651.0,90641.0,0.04716148]
[1768036289501,0.01103143,90650.0,90641.0,0.04716148]
[1768036289700,0.01103156,90649.0,90641.0,0.04716148]
[1768036290296,0.01103156,90649.0,90641.0,0.04707157]
[1768036290542,0.01103143,90650.0,90641.0,0.04707157]
[1768036290864,0.01103131,90651.0,90641.0,0.04707157]
[1768036292427,0.01103119,90652.0,90641.0,0.04707157]
[1768036292838,0.01103131,90651.0,90641.0,0.04707157]
[1768036293822,0.01103143,90650.0,90641.0,0.04707157]
[1768036294871,0.01103131,90651.0,90641.0,0.04707157]
[1768036296052,0.01103119,90652.0,90641.0,0.04707157]
[1768036298064,0.01103107,90653.0,90641.0,0.04707157]
[1768036298495,0.01103119,90652.0,90641.0,0.04707157]
[1768036299697,0.01103107,90653.0,90641.0,0.04707157]
[1768036303420,0.01103119,90652.0,90641.0,0.04707157]
[1768036303630,0.01103107,90653.0,90641.0,0.04707157]
[1768036304126,0.01103131,90651.0,90641.0,0.04707157]
[1768036304327,0.01103119,90652.0,90641.0,0.04707157]
[1768036305903,0.01103131,90651.0,90641.0,0.04707157]
[1768036306444,0.01103119,90652.0,90641.0,0.04698166]
[1768036307518,0.01103131,90651.0,90641.0,0.04698166]
[1768036309165,0.01103119,90652.0,90641.0,0.04698166]
[1768036312245,0.01103131,90651.0,90641.0,0.04698166]
[1768036315004,0.01103143,90650.0,90641.0,0.04698166]
[1768036315205,0.01103131,90651.0,90641.0,0.04698166]
[1768036317143,0.01103119,90652.0,90641.0,0.04698166]
[1768036319777,0.01103131,90651.0,90641.0,0.04698166]
[1768036320748,0.01103119,90652.0,90641.0,0.04698166]
[1768036321402,0.01103131,90651.0,90641.0,0.04698166]
[1768036322804,0.01103143,90650.0,90641.0,0.04698166]
[1768036323372,0.01103131,90651.0,90641.0,0.04698166]
[1768036324183,0.01103143,90650.0,90641.0,0.04698166]
[1768036324650,0.01103168,90648.0,90641.0,0.04698166]
[1768036325362,0.0110318,90647.0,90641.0,0.04698166]
[1768036325922,0.01103168,90648.0,90641.0,0.04698166]
[1768036326239,0.01103156,90649.0,90641.0,0.04698166]
[1768036327339,0.01103143,90650.0,90641.0,0.04698166]
[1768036327542,0.01103156,90649.0,90641.0,0.04698166]
[1768036328045,0.01103168,90648.0,90641.0,0.04698166]
[1768036328946,0.01103168,90648.0,90641.0,0.04689174]
[1768036331145,0.0110318,90647.0,90641.0,0.04689174]
[1768036331342,0.01103168,90648.0,90641.0,0.04689174]
[1768036332165,0.0110318,90647.0,90641.0,0.04689174]
[1768036333118,0.01103168,90648.0,90641.0,0.04689174]
[1768036335158,0.01103156,90649.0,90641.0,0.04689174]
[1768036337370,0.0110318,90647.0,90641.0,0.04689174]
[1768036338066,0.01103192,90646.0,90641.0,0.04689174]
[1768036338265,0.01103204,90645.0,90641.0,0.04689174]
[1768036338561,0.01103192,90646.0,90641.0,0.04689174]
[1768036341771,0.0110318,90647.0,90641.0,0.04689174]
[1768036341974,0.01103204,90645.0,90641.0,0.04689174]
[1768036342173,0.01103216,90644.0,90641.0,0.04689174]
[1768036342378,0.0110318,90647.0,90641.0,0.04589274]
[1768036343383,0.01103168,90648.0,90641.0,0.04589274]
[1768036343567,0.01103156,90649.0,90641.0,0.04589274]
[1768036343783,0.01103131,90651.0,90641.0,0.04589274]
[1768036345468,0.01103119,90652.0,90641.0,0.04589274]
[1768036345981,0.01103131,90651.0,90641.0,0.04589274]
[1768036348186,0.01103143,90650.0,90641.0,0.04589274]
[1768036348531,0.01103156,90649.0,90641.0,0.04589274]
[1768036348733,0.01103143,90650.0,90641.0,0.04589274]
[1768036348978,0.01103156,90649.0,90641.0,0.04589274]
[1768036349895,0.01103143,90650.0,90641.0,0.04589274]
[1768036353073,0.03311143,90650.0,90641.0,0.04589274]
[1768036353527,0.02208,90650.0,90641.0,0.04589274]
[1768036361738,0.02208,90650.0,90641.0,0.04580282]
[1768036366389,0.03311143,90650.0,90641.0,0.04580282]
[1768036366726,0.02208,90650.0,90641.0,0.04580282]
[1768036366926,0.03311143,90650.0,90641.0,0.04580282]
[1768036368673,0.02208,90650.0,90641.0,0.04580282]
[1768036368823,0.03311143,90650.0,90641.0,0.04580282]
[1768036369028,0.02208,90650.0,90641.0,0.04580282]
[1768036372511,0.03311143,90650.0,90641.0,0.04580282]
[1768036372967,0.02208,90650.0,90641.0,0.04580282]
[1768036375147,0.03311143,90650.0,90641.0,0.04580282]
[1768036376234,0.02208,90650.0,90641.0,0.04580282]
[1768036383082,0.02208,90650.0,90641.0,0.0457129]
[1768036384888,0.06622403,90650.0,90641.0,0.0457129]
[1768036385288,0.01103156,90649.0,90641.0,0.0457129]
[1768036387487,0.06622403,90650.0,90641.0,0.0457129]
[1768036387705,0.0551926,90650.0,90641.0,0.0457129]
[1768036387900,0.06622403,90650.0,90641.0,0.0457129]
[1768036388081,0.01103156,90649.0,90641.0,0.0457129]
[1768036388277,0.01103168,90648.0,90641.0,0.0457129]
[1768036389607,0.01103156,90649.0,90641.0,0.0457129]
[1768036390591,0.01103168,90648.0,90641.0,0.0457129]
[1768036390801,0.01103156,90649.0,90641.0,0.0457129]
[1768036391440,0.01103168,90648.0,90633.0,0.04683891]
[1768036391604,0.01103204,90645.0,90633.0,0.04683891]
[1768036391986,0.01103216,90644.0,90633.0,0.04683891]
[1768036392531,0.01103204,90645.0,90633.0,0.04683891]
[1768036394928,0.01103192,90646.0,90633.0,0.04683891]
[1768036395419,0.01103204,90645.0,90633.0,0.04683891]
[1768036395618,0.01103192,90646.0,90633.0,0.04683891]
[1768036396468,0.01103204,90645.0,90633.0,0.04683891]
[1768036396672,0.01103216,90644.0,90633.0,0.04683891]
[1768036397888,0.01103204,90645.0,90633.0,0.04683891]
[1768036398292,0.01103216,90644.0,90633.0,0.04683891]
[1768036398494,0.01103204,90645.0,90633.0,0.04683891]
[1768036401108,0.01103216,90644.0,90633.0,0.04683891]
[1768036401453,0.01103204,90645.0,90633.0,0.04683891]
[1768036403677,0.01103216,90644.0,90633.0,0.04683891]
[1768036404797,0.01103204,90645.0,90633.0,0.04683891]
[1768036405365,0.01103216,90644.0,90633.0,0.04683891]
[1768036405567,0.01103204,90645.0,90633.0,0.04683891]
[1768036406379,0.01103216,90644.0,90633.0,0.04683891]
[1768036406578,0.01103204,90645.0,90633.0,0.04683891]
[1768036407621,0.01103216,90644.0,90633.0,0.04683891]
[1768036407782,0.01103204,90645.0,90633.0,0.04683891]
[1768036409906,0.01103192,90646.0,90633.0,0.04683891]
[1768036410105,0.01103204,90645.0,90633.0,0.04683891]
[1768036410313,0.01103192,90646.0,90633.0,0.04683891]
[1768036411292,0.01103204,90645.0,90633.0,0.04683891]
[1768036411496,0.01103204,90645.0,90633.0,0.04688934]
[1768036411700,0.01103192,90646.0,90633.0,0.04688934]
[1768036411899,0.01103204,90645.0,90633.0,0.04688934]
[1768036412332,0.01103192,90646.0,90633.0,0.04688934]
[1768036412997,0.01103204,90645.0,90633.0,0.04688934]
[1768036413658,0.01103192,90646.0,90633.0,0.04688934]
[1768036413856,0.01103204,90645.0,90633.0,0.04688934]
[1768036414257,0.01103192,90646.0,90633.0,0.04688934]
[1768036414684,0.0110318,90647.0,90633.0,0.04688934]
[1768036414883,0.01103192,90646.0,90633.0,0.04688934]
[1768036415302,0.0110318,90647.0,90633.0,0.05792284]
[1768036415451,0.0110318,90647.0,90633.0,0.04688934]
[1768036415664,0.01103192,90646.0,90633.0,0.04688934]
[1768036415869,0.0110318,90647.0,90633.0,0.04688934]
[1768036416499,0.01103192,90646.0,90633.0,0.04688934]
[1768036416723,0.0110318,90647.0,90633.0,0.05792284]
[1768036416927,0.01103192,90646.0,90633.0,0.04688934]
[1768036417078,0.0110318,90647.0,90633.0,0.04688934]
[1768036417538,0.0110318,90647.0,90633.0,0.05792284]
[1768036417741,0.01103192,90646.0,90633.0,0.04688934]
[1768036417952,0.0110318,90647.0,90633.0,0.05792284]
[1768036419175,0.01103192,90646.0,90633.0,0.04688934]
[1768036420413,0.0110318,90647.0,90633.0,0.04688934]
[1768036420921,0.01103192,90646.0,90633.0,0.04688934]
[1768036421489,0.01103204,90645.0,90633.0,0.04688934]
[1768036422639,0.01103192,90646.0,90633.0,0.04688934]
[1768036423153,0.01103204,90645.0,90633.0,0.04688934]
[1768036426866,0.01103192,90646.0,90633.0,0.04688934]
[1768036427291,0.01103204,90645.0,90633.0,0.04688934]
[1768036427938,0.01103192,90646.0,90633.0,0.04688934]
[1768036428139,0.01103204,90645.0,90633.0,0.04688934]
[1768036428398,0.01103192,90646.0,90633.0,0.04688934]
[1768036429078,0.0110318,90647.0,90633.0,0.04688934]
[1768036429220,0.0110318,90647.0,90633.0,0.05792284]
[1768036429577,0.01103192,90646.0,90633.0,0.04688934]
[1768036429931,0.0110318,90647.0,90633.0,0.05792284]
[1768036430724,0.0110318,90647.0,90634.0,0.04897246]
[1768036432270,0.01103168,90648.0,90634.0,0.04897246]
[1768036432472,0.0110318,90647.0,90634.0,0.04897246]
[1768036432988,0.01103168,90648.0,90634.0,0.04897246]
[1768036433468,0.0110318,90647.0,90634.0,0.04897246]
[1768036435303,0.01103168,90648.0,90634.0,0.06000584]
[1768036435541,0.01103168,90648.0,90634.0,0.04897246]
[1768036436083,0.0110318,90647.0,90634.0,0.04897246]
[1768036437942,0.01103168,90648.0,90634.0,0.06000584]
[1768036438357,0.02206372,90649.0,90635.0,0.01103326]
[1768036438559,0.01103168,90648.0,90634.0,0.06000584]
[1768036440204,0.0110318,90647.0,90634.0,0.04897246]
[1768036440602,0.01103168,90648.0,90634.0,0.04897246]
[1768036440807,0.0110318,90647.0,90634.0,0.04897246]
[1768036441044,0.01103168,90648.0,90634.0,0.06000584]
[1768036441390,0.01103168,90648.0,90636.0,0.04897246]
[1768036442586,0.0110318,90647.0,90636.0,0.04897246]
[1768036442761,0.01103192,90646.0,90636.0,0.04897246]
[1768036442971,0.01103204,90645.0,90636.0,0.04897246]
[1768036444186,0.01103192,90646.0,90636.0,0.04897246]
[1768036445029,0.01103204,90645.0,90636.0,0.04897246]
[1768036445226,0.01103192,90646.0,90636.0,0.04897246]
[1768036445544,0.0331126,90645.0,90636.0,0.04897246]
[1768036451722,0.01103156,90649.0,90636.0,0.04897246]
[1768036451924,0.01103168,90648.0,90636.0,0.04897246]
[1768036452130,0.0331126,90646.0,90634.0,0.01103338]
[1768036452981,0.0331126,90646.0,90636.0,0.01103314]
[1768036453556,0.0331126,90646.0,90634.0,0.01103338]
[1768036454211,0.0331126,90646.0,90633.0,0.01108393]
[1768036455405,0.0331126,90646.0,90634.0,0.01103338]
[1768036456195,0.0331126,90646.0,90636.0,0.01103314]
[1768036456399,0.0321136,90646.0,90635.0,0.01103326]
[1768036458749,0.0321136,90646.0,90634.0,0.01103338]
[1768036459099,0.0321136,90646.0,90635.0,0.01103326]
[1768036459506,0.0321136,90646.0,90633.0,0.04802053]
[1768036459707,0.0321136,90646.0,90635.0,0.01103326]
[1768036459910,0.0321136,90646.0,90634.0,0.01103338]
[1768036460109,0.0321136,90646.0,90635.0,0.01103326]
[1768036460308,0.0321136,90646.0,90634.0,0.01103338]
[1768036461318,0.0321136,90646.0,90635.0,0.01103326]
[1768036462760,0.0321136,90646.0,90634.0,0.01103338]
[1768036462942,0.0321136,90646.0,90635.0,0.01103326]